bitfinex/quotes_BTCUSD_20260127
["timestamp","ask_amount","ask_price","bid_price","bid_amount"]
[1769498237322,0.1244133,88576.0,88565.0,0.46945993]
[1769498237528,0.11312357,88575.0,88565.0,0.46945993]
[1769498238271,0.11312357,88575.0,88559.0,0.02350329]
[1769498238482,0.11312357,88575.0,88560.0,0.46945993]
[1769498240080,0.11312357,88574.0,88560.0,0.46945993]
[1769498240279,0.11312357,88573.0,88560.0,0.46945993]
[1769498240610,0.11312357,88573.0,88559.0,0.02350329]
[1769498240611,0.4996411,88583.0,88562.0,0.46945993]
[1769498241887,0.4996411,88583.0,88561.0,0.06090032]
[1769498241888,0.4996411,88583.0,88564.0,0.49772611]
[1769498242093,0.4996411,88583.0,88564.0,0.48409545]
[1769498245038,0.46572826,88583.0,88564.0,0.50842111]
[1769498245771,0.0001481,88584.0,88564.0,0.50842111]
[1769498245976,0.0001481,88584.0,88565.0,0.02432566]
[1769498246189,0.0001481,88584.0,88568.0,0.48725087]
[1769498247884,0.02421102,88587.0,88568.0,0.48725087]
[1769498248112,0.03549935,88587.0,88568.0,0.48725087]
[1769498248353,0.02421102,88587.0,88568.0,0.48725087]
[1769498252707,0.1372875,88586.0,88568.0,0.48725087]
[1769498252902,0.1372875,88585.0,88569.0,0.05202472]
[1769498253101,0.11307648,88584.0,88569.0,0.05202472]
[1769498253400,0.11307648,88583.0,88569.0,0.05202472]
[1769498253613,0.11307648,88582.0,88569.0,0.05202472]
[1769498253857,0.11307648,88581.0,88569.0,0.05202472]
[1769498254100,0.11307648,88580.0,88569.0,0.05202472]
[1769498254252,0.11307648,88579.0,88569.0,0.53927559]
[1769498254455,0.02421102,88585.0,88570.0,0.05721239]
[1769498254688,0.11307155,88584.0,88570.0,0.05721239]
[1769498255018,0.11307155,88583.0,88569.0,0.48725087]
[1769498255219,0.11307155,88582.0,88569.0,0.48725087]
[1769498255425,0.11307155,88581.0,88569.0,0.48725087]
[1769498255722,0.11307155,88580.0,88569.0,0.48725087]
[1769498255930,0.11307155,88579.0,88569.0,0.48725087]
[1769498256072,0.02421102,88585.0,88569.0,0.48725087]
[1769498256273,0.11306963,88584.0,88569.0,0.53927559]
[1769498256473,0.11306963,88583.0,88569.0,0.53927559]
[1769498256694,0.11306963,88582.0,88569.0,0.53927559]
[1769498256896,0.11306963,88581.0,88569.0,0.53927559]
[1769498257238,0.11306963,88580.0,88569.0,0.53927559]
[1769498257383,0.02421102,88585.0,88569.0,0.53927559]
[1769498257768,0.13727808,88584.0,88569.0,0.53927559]
[1769498257948,0.11306706,88583.0,88569.0,0.53927559]
[1769498258158,0.11306706,88582.0,88569.0,0.53927559]
[1769498258354,0.11306706,88581.0,88569.0,0.53927559]
[1769498258509,0.11306706,88580.0,88569.0,0.53927559]
[1769498258737,0.11306706,88579.0,88569.0,0.53927559]
[1769498258931,0.11306706,88578.0,88569.0,0.53927559]
[1769498259138,0.11306706,88577.0,88569.0,0.53927559]
[1769498259506,0.02421102,88584.0,88569.0,0.53927559]
[1769498259709,0.11306604,88583.0,88569.0,0.53927559]
[1769498259913,0.11306604,88582.0,88569.0,0.3741273]
[1769498260118,0.11306604,88581.0,88569.0,0.3741273]
[1769498260342,0.11306604,88580.0,88562.0,0.0001481]
[1769498260532,0.02421102,88579.0,88562.0,0.48739897]
[1769498265579,0.02421102,88579.0,88563.0,0.50805509]
[1769498267820,0.02421102,88579.0,88563.0,0.48725087]
[1769498269269,0.11308838,88578.0,88563.0,0.48725087]
[1769498269481,0.02421102,88579.0,88563.0,0.48725087]
[1769498269686,0.11308838,88578.0,88563.0,0.48725087]
[1769498269843,0.11308838,88577.0,88563.0,0.48725087]
[1769498270048,0.11308838,88576.0,88563.0,0.48725087]
[1769498270265,0.01129024,88572.0,88562.0,0.0001481]
[1769498270547,0.47070499,88566.0,88553.0,0.1161881]
[1769498270760,0.02421102,88565.0,88553.0,0.1161881]
[1769498271940,0.11308059,88564.0,88553.0,0.1161881]
[1769498272136,0.02421102,88565.0,88553.0,0.1161881]
[1769498272341,0.11304523,88564.0,88553.0,0.1161881]
[1769498272583,0.02421102,88565.0,88553.0,0.1161881]
[1769498272897,0.11304523,88564.0,88553.0,0.1161881]
[1769498273145,0.25732769,88566.0,88553.0,0.1161881]
[1769498276772,0.03550165,88569.0,88553.0,0.1161881]
[1769498276974,0.49490223,88569.0,88553.0,0.1161881]
[1769498277588,0.01129075,88568.0,88553.0,0.1161881]
[1769498277791,0.49490223,88569.0,88553.0,0.1161881]
[1769498278651,0.45940058,88565.0,88553.0,0.1161881]
[1769498278862,0.47069172,88565.0,88553.0,0.1161881]
[1769498279061,0.47069172,88565.0,88553.0,0.0001481]
[1769498279062,0.03616335,88564.0,88553.0,0.0001481]
[1769498279265,0.47069197,88563.0,88553.0,0.0001481]
[1769498279469,0.45940058,88563.0,88553.0,0.0001481]
[1769498279687,0.45940058,88561.0,88553.0,0.0001481]
[1769498291006,0.45940058,88566.0,88553.0,0.0001481]
[1769498292280,0.11292133,88565.0,88553.0,0.0001481]
[1769498292491,0.45940058,88566.0,88553.0,0.0001481]
[1769498292691,0.11292133,88565.0,88553.0,0.0001481]
[1769498292824,0.45940058,88566.0,88553.0,0.0001481]
[1769498293031,0.11292133,88565.0,88553.0,0.0001481]
[1769498293239,0.45940058,88566.0,88553.0,0.0001481]
[1769498293448,0.11292941,88565.0,88553.0,0.0001481]
[1769498293684,0.47069159,88566.0,88553.0,0.0001481]
[1769498293833,0.11292941,88565.0,88553.0,0.0001481]
[1769498294058,0.45940058,88566.0,88553.0,0.0001481]
[1769498294277,0.11293122,88565.0,88553.0,0.0001481]
[1769498294483,0.45940058,88566.0,88553.0,0.0001481]
[1769498294681,0.1129394,88565.0,88553.0,0.0001481]
[1769498294888,0.47069159,88566.0,88553.0,0.0001481]
[1769498295092,0.1129394,88565.0,88553.0,0.0001481]
[1769498295322,0.28555101,88566.0,88553.0,0.0001481]
[1769498295938,0.27426,88566.0,88553.0,0.0001481]
[1769498296676,0.28555101,88566.0,88553.0,0.0001481]
[1769498296806,0.27426,88566.0,88553.0,0.0001481]
[1769498299304,0.11304056,88565.0,88553.0,0.0001481]
[1769498299518,0.01129114,88565.0,88553.0,0.0001481]
[1769498299667,0.45940058,88564.0,88553.0,0.0001481]
[1769498300372,0.11308822,88563.0,88553.0,0.0001481]
[1769498300595,0.45940058,88564.0,88553.0,0.0001481]
[1769498300765,0.11308818,88563.0,88553.0,0.0001481]
[1769498300965,0.45940058,88564.0,88553.0,0.0001481]
[1769498301170,0.11308818,88563.0,88553.0,0.0001481]
[1769498301372,0.45940058,88564.0,88553.0,0.0001481]
[1769498301614,0.11310143,88563.0,88553.0,0.0001481]
[1769498301790,0.45940058,88564.0,88553.0,0.0001481]
[1769498301995,0.11310143,88563.0,88553.0,0.0001481]
[1769498302195,0.45940058,88564.0,88553.0,0.0001481]
[1769498302395,0.11310312,88563.0,88553.0,0.0001481]
[1769498302593,0.45940058,88564.0,88553.0,0.0001481]
[1769498302798,0.11310312,88563.0,88553.0,0.0001481]
[1769498303030,0.45940058,88564.0,88553.0,0.0001481]
[1769498303279,0.11310322,88563.0,88553.0,0.0001481]
[1769498303502,0.45940058,88564.0,88553.0,0.0001481]
[1769498303679,0.11310525,88563.0,88553.0,0.0001481]
[1769498303853,0.45940058,88564.0,88553.0,0.0001481]
[1769498304060,0.11310525,88563.0,88553.0,0.0001481]
[1769498304238,0.45940058,88564.0,88553.0,0.0001481]
[1769498304450,0.11310808,88563.0,88553.0,0.0001481]
[1769498304640,0.45940058,88564.0,88553.0,0.0001481]
[1769498304842,0.11310808,88563.0,88553.0,0.0001481]
[1769498305040,0.45940058,88564.0,88553.0,0.0001481]
[1769498305289,0.11310826,88563.0,88553.0,0.0001481]
[1769498305492,0.11310826,88562.0,88553.0,0.0001481]
[1769498305651,0.11310826,88561.0,88553.0,0.0001481]
[1769498305854,0.11310826,88560.0,88553.0,0.0001481]
[1769498306074,0.45940058,88564.0,88553.0,0.0001481]
[1769498306273,0.11311115,88563.0,88553.0,0.0001481]
[1769498306473,0.11311115,88562.0,88553.0,0.0001481]
[1769498306793,0.11311115,88561.0,88553.0,0.0001481]
[1769498307013,0.45940058,88564.0,88553.0,0.0001481]
[1769498307014,0.11311115,88560.0,88553.0,0.0001481]
[1769498307173,0.45940058,88564.0,88553.0,0.0001481]
[1769498307379,0.11311938,88563.0,88553.0,0.0001481]
[1769498307595,0.11311938,88562.0,88553.0,0.0001481]
[1769498307798,0.11311938,88561.0,88553.0,0.0001481]
[1769498308001,0.11311938,88560.0,88553.0,0.0001481]
[1769498308231,0.45940058,88564.0,88553.0,0.0001481]
[1769498308550,0.11312613,88563.0,88553.0,0.0001481]
[1769498308703,0.11312613,88562.0,88553.0,0.0001481]
[1769498308906,0.11312613,88561.0,88553.0,0.0001481]
[1769498309115,0.11312613,88560.0,88553.0,0.0001481]
[1769498309435,0.11312613,88559.0,88553.0,0.0001481]
[1769498309758,0.03391925,88567.0,88553.0,0.0001481]
[1769498309914,0.11313318,88566.0,88553.0,0.0001481]
[1769498310121,0.11313318,88565.0,88553.0,0.0001481]
[1769498310337,0.11313318,88564.0,88553.0,0.0001481]
[1769498310883,0.12442444,88564.0,88553.0,0.0001481]
[1769498311092,0.11313318,88563.0,88553.0,0.0001481]
[1769498311519,0.11313318,88562.0,88553.0,0.0001481]
[1769498311720,0.11313318,88561.0,88553.0,0.0001481]
[1769498311924,0.11313318,88560.0,88553.0,0.0001481]
[1769498312162,0.11313318,88559.0,88553.0,0.0001481]
[1769498312370,0.01129114,88565.0,88553.0,0.0001481]
[1769498312525,0.11313319,88564.0,88553.0,0.0001481]
[1769498312726,0.11313319,88563.0,88553.0,0.0001481]
[1769498312994,0.11313319,88562.0,88553.0,0.0001481]
[1769498313213,0.11313319,88561.0,88553.0,0.0001481]
[1769498313348,0.11313319,88560.0,88553.0,0.0001481]
[1769498313550,0.11313319,88559.0,88553.0,0.0001481]
[1769498313788,0.01129139,88563.0,88553.0,0.0001481]
[1769498313990,0.11313313,88562.0,88553.0,0.0001481]
[1769498314168,0.01129139,88563.0,88553.0,0.0001481]
[1769498314169,0.51264641,88557.0,88553.0,0.0001481]
[1769498314375,0.51264641,88557.0,88527.0,0.1477481]
[1769498314376,0.0001481,88553.0,88539.0,0.02729195]
[1769498314583,0.61449316,88552.0,88544.0,0.00019478]
[1769498314798,0.11313891,88551.0,88544.0,0.00019478]
[1769498317199,0.50135425,88552.0,88544.0,0.00019478]
[1769498317403,0.51264628,88558.0,88544.0,0.00019478]
[1769498317655,0.6143957,88557.0,88544.0,0.00019478]
[1769498317800,0.11304145,88556.0,88544.0,0.00019478]
[1769498318167,0.11304145,88555.0,88544.0,0.00019478]
[1769498318367,0.11304145,88554.0,88544.0,0.00019478]
[1769498318583,0.11304145,88553.0,88544.0,0.00019478]
[1769498318729,0.11304145,88552.0,88544.0,0.00019478]
[1769498318911,0.51264641,88557.0,88544.0,0.00019478]
[1769498319256,0.11302599,88556.0,88544.0,0.00019478]
[1769498319462,0.11302599,88555.0,88544.0,0.00019478]
[1769498319624,0.11302599,88554.0,88544.0,0.00019478]
[1769498319832,0.11302599,88553.0,88544.0,0.00019478]
[1769498320026,0.11302599,88552.0,88544.0,0.00019478]
[1769498320248,0.11302599,88551.0,88544.0,0.00019478]
[1769498320444,0.11302599,88550.0,88544.0,0.00019478]
[1769498320652,0.01129228,88556.0,88544.0,0.00019478]
[1769498320816,0.11299999,88555.0,88544.0,0.00019478]
[1769498321166,0.11299999,88554.0,88544.0,0.00019478]
[1769498321389,0.11299999,88553.0,88544.0,0.00019478]
[1769498321597,0.11299999,88552.0,88544.0,0.00019478]
[1769498321733,0.11299999,88551.0,88544.0,0.00019478]
[1769498321966,0.01129228,88556.0,88544.0,0.00019478]
[1769498322189,0.11298593,88555.0,88544.0,0.00019478]
[1769498322431,0.11298593,88554.0,88544.0,0.00019478]
[1769498322617,0.11298593,88553.0,88544.0,0.00019478]
[1769498322817,0.11298593,88552.0,88544.0,0.00019478]
[1769498323035,0.11298593,88551.0,88544.0,0.00019478]
[1769498323244,0.01129241,88555.0,88544.0,0.00019478]
[1769498323245,0.01129254,88554.0,88544.0,0.00019478]
[1769498323468,0.11296484,88553.0,88544.0,0.00019478]
[1769498323661,0.11296484,88552.0,88544.0,0.00019478]
[1769498323821,0.11296484,88551.0,88544.0,0.00019478]
[1769498324025,0.01129228,88556.0,88544.0,0.00019478]
[1769498324224,0.12424935,88555.0,88544.0,0.00019478]
[1769498324451,0.11295694,88554.0,88544.0,0.00019478]
[1769498324658,0.11295694,88553.0,88544.0,0.00019478]
[1769498324858,0.11295694,88552.0,88544.0,0.00019478]
[1769498325098,0.11295694,88551.0,88544.0,0.00019478]
[1769498325239,0.01129241,88555.0,88544.0,0.00019478]
[1769498325435,0.01129279,88552.0,88544.0,0.00019478]
[1769498325749,0.01129279,88552.0,88539.0,0.02729195]
[1769498325981,0.11295071,88551.0,88539.0,0.02729195]
[1769498326179,0.01129267,88553.0,88539.0,0.02729195]
[1769498326331,0.62559271,88552.0,88534.0,0.02729195]
[1769498326525,0.11294567,88551.0,88534.0,0.02729195]
[1769498326729,0.51264704,88552.0,88536.0,0.02729195]
[1769498326930,0.11294567,88551.0,88536.0,0.02729195]
[1769498327154,0.51264704,88552.0,88536.0,0.02729195]
[1769498327424,0.50135425,88552.0,88536.0,0.02729195]
[1769498329405,0.11293791,88551.0,88536.0,0.46473232]
[1769498329654,0.11293791,88550.0,88537.0,0.02729195]
[1769498329851,0.50135425,88552.0,88537.0,0.02729195]
[1769498330062,0.11293902,88551.0,88537.0,0.02729195]
[1769498330212,0.11293902,88550.0,88537.0,0.02729195]
[1769498330412,0.01129254,88554.0,88537.0,0.02729195]
[1769498330607,0.11293606,88553.0,88537.0,0.46473232]
[1769498330814,0.11293606,88552.0,88538.0,0.02729195]
[1769498331123,0.11293606,88551.0,88538.0,0.02729195]
[1769498331341,0.01129241,88555.0,88538.0,0.02729195]
[1769498331342,0.11293606,88550.0,88538.0,0.02729195]
[1769498331561,0.11293606,88549.0,88538.0,0.02729195]
[1769498331794,0.50135425,88557.0,88540.0,0.02729195]
[1769498331912,0.11293446,88556.0,88541.0,0.02729195]
[1769498332117,0.11293446,88555.0,88541.0,0.02659245]
[1769498332319,0.11293446,88554.0,88541.0,0.02659245]
[1769498332518,0.11293446,88553.0,88541.0,0.02659245]
[1769498332756,0.11293446,88552.0,88541.0,0.02659245]
[1769498332914,0.11293446,88551.0,88541.0,0.02659245]
[1769498333119,0.01129228,88556.0,88541.0,0.02659245]
[1769498333329,0.11293518,88555.0,88541.0,0.02659245]
[1769498333528,0.11293518,88554.0,88541.0,0.02659245]
[1769498333747,0.11293518,88553.0,88541.0,0.02659245]
[1769498333958,0.11293518,88552.0,88541.0,0.02659245]
[1769498334167,0.11293518,88551.0,88541.0,0.02659245]
[1769498334390,0.01129228,88556.0,88541.0,0.02659245]
[1769498334605,0.11293781,88555.0,88541.0,0.02659245]
[1769498334806,0.11293781,88554.0,88541.0,0.02659245]
[1769498335012,0.11293781,88553.0,88541.0,0.02659245]
[1769498335234,0.11293781,88552.0,88541.0,0.02659245]
[1769498335443,0.11293781,88551.0,88541.0,0.02632006]
[1769498335650,0.11294196,88550.0,88541.0,0.02586586]
[1769498335854,0.54656968,88557.0,88541.0,0.02532082]
[1769498336240,0.20331779,88556.0,88541.0,0.02468494]
[1769498336455,0.11294196,88555.0,88541.0,0.0241399]
[1769498336666,0.11294196,88555.0,88541.0,0.0236857]
[1769498336884,0.11294196,88555.0,88541.0,0.0232315]
[1769498337068,0.11294196,88555.0,88541.0,0.0227773]
[1769498337277,0.11294196,88555.0,88541.0,0.02223223]
[1769498337482,0.11294196,88555.0,88541.0,0.02177798]
[1769498337688,0.11294196,88555.0,88541.0,0.02123288]
[1769498337890,0.11294196,88555.0,88541.0,0.02077863]
[1769498338092,0.11294196,88555.0,88541.0,0.02023353]
[1769498338308,0.20331779,88555.0,88541.0,0.01968843]
[1769498338512,0.20331779,88555.0,88541.0,0.01914333]
[1769498338726,0.20331779,88555.0,88541.0,0.01859823]
[1769498338928,0.20331779,88555.0,88541.0,0.01805313]
[1769498339157,0.20331779,88555.0,88541.0,0.01759888]
[1769498339363,0.20331779,88555.0,88541.0,0.01714463]
[1769498339542,0.11294196,88554.0,88541.0,0.01659953]
[1769498339746,0.11294196,88553.0,88541.0,0.01614528]
[1769498339946,0.11294196,88552.0,88541.0,0.01578188]
[1769498340174,0.11294196,88551.0,88541.0,0.01550933]
[1769498340377,0.11298859,88550.0,88535.0,0.0001481]
[1769498340582,0.11298859,88549.0,88535.0,0.0001481]
[1769498340799,0.11298859,88548.0,88535.0,0.02319561]
[1769498340971,0.11298859,88547.0,88535.0,0.02319561]
[1769498341194,0.10895793,88554.0,88535.0,0.02319561]
[1769498341195,0.11298859,88546.0,88535.0,0.02319561]
[1769498341337,0.11298859,88545.0,88536.0,0.02304751]
[1769498341681,0.09037583,88554.0,88538.0,0.50115883]
[1769498341903,0.203382,88554.0,88539.0,0.50115883]
[1769498342056,0.03392327,88558.0,88540.0,0.02304751]
[1769498342057,0.203382,88553.0,88540.0,0.02304751]
[1769498342258,0.11300617,88552.0,88540.0,0.02304751]
[1769498342439,0.11300617,88551.0,88540.0,0.02304751]
[1769498342638,0.11300617,88550.0,88540.0,0.02304751]
[1769498342843,0.11300617,88549.0,88540.0,0.02304751]
[1769498343052,0.11300617,88548.0,88541.0,0.50115883]
[1769498343245,0.09037583,88557.0,88537.0,0.02304751]
[1769498343457,0.0452153,88558.0,88540.0,0.50115883]
[1769498343458,0.11305793,88556.0,88540.0,0.50115883]
[1769498343661,0.0452153,88558.0,88541.0,0.02304751]
[1769498343859,0.0452153,88558.0,88542.0,0.02304751]
[1769498345098,0.01129216,88557.0,88542.0,0.02304751]
[1769498345506,0.01129203,88558.0,88542.0,0.02304751]
[1769498345930,0.01129216,88557.0,88542.0,0.02304751]
[1769498346134,0.01129203,88558.0,88542.0,0.02304751]
[1769498348426,0.48413168,88561.0,88542.0,0.07548295]
[1769498348633,0.48426352,88561.0,88542.0,0.01890739]
[1769498348836,0.01129203,88558.0,88542.0,0.01890739]
[1769498349049,0.01129203,88558.0,88541.0,0.50115883]
[1769498349287,0.0112919,88559.0,88541.0,0.50115883]
[1769498349492,0.01129203,88558.0,88541.0,0.50115883]
[1769498350167,0.01,88541.0,88535.0,0.0001481]
[1769498350508,0.02303307,88545.0,88535.0,0.0001481]
[1769498353196,0.03616575,88546.0,88535.0,0.0001481]
[1769498355428,0.11310632,88545.0,88535.0,0.0001481]
[1769498355640,0.03616575,88546.0,88535.0,0.0001481]
[1769498355964,0.1131038,88545.0,88535.0,0.0001481]
[1769498356098,0.03616575,88546.0,88535.0,0.0001481]
[1769498356301,0.11310514,88545.0,88535.0,0.0001481]
[1769498356508,0.03616575,88546.0,88535.0,0.0001481]
[1769498356769,0.11310312,88545.0,88535.0,0.0001481]
[1769498356894,0.03616575,88546.0,88535.0,0.0001481]
[1769498357096,0.11310312,88545.0,88535.0,0.0001481]
[1769498357295,0.03616575,88546.0,88535.0,0.0001481]
[1769498357533,0.11310285,88545.0,88535.0,0.0001481]
[1769498357711,0.11310285,88544.0,88535.0,0.0001481]
[1769498357921,0.03616575,88546.0,88535.0,0.0001481]
[1769498358123,0.11310331,88545.0,88535.0,0.0001481]
[1769498358336,0.11310331,88544.0,88535.0,0.0001481]
[1769498358524,0.11310331,88543.0,88535.0,0.0001481]
[1769498358722,0.11310269,88542.0,88535.0,0.0001481]
[1769498358926,0.11310269,88541.0,88535.0,0.0001481]
[1769498359107,0.03616575,88546.0,88535.0,0.0001481]
[1769498359310,0.11310487,88545.0,88535.0,0.0001481]
[1769498359531,0.11310487,88544.0,88535.0,0.0001481]
[1769498359760,0.11310487,88543.0,88535.0,0.0001481]
[1769498359937,0.11310487,88542.0,88535.0,0.0001481]
[1769498360159,0.11310487,88541.0,88535.0,0.0001481]
[1769498360386,0.03616575,88546.0,88535.0,0.0001481]
[1769498360561,0.11310141,88545.0,88535.0,0.0001481]
[1769498360760,0.11310141,88544.0,88535.0,0.0001481]
[1769498360975,0.11310141,88543.0,88535.0,0.0001481]
[1769498361163,0.11310141,88542.0,88535.0,0.0001481]
[1769498361362,0.03616575,88546.0,88535.0,0.0001481]
[1769498361621,0.11309998,88545.0,88535.0,0.0001481]
[1769498361835,0.11309998,88544.0,88535.0,0.0001481]
[1769498362006,0.11309998,88543.0,88535.0,0.0001481]
[1769498362166,0.11309998,88542.0,88535.0,0.0001481]
[1769498362378,0.03616575,88546.0,88535.0,0.0001481]
[1769498362586,0.11309911,88545.0,88535.0,0.0001481]
[1769498362796,0.11309911,88544.0,88535.0,0.0001481]
[1769498363019,0.03616575,88546.0,88535.0,0.0001481]
[1769498363020,0.11309911,88543.0,88535.0,0.0001481]
[1769498363253,0.03616575,88546.0,88535.0,0.0001481]
[1769498363254,0.11309911,88542.0,88535.0,0.0001481]
[1769498363496,0.0564611,88557.0,88535.0,0.0001481]
[1769498363707,0.03616575,88546.0,88535.0,0.0001481]
[1769498363930,0.11309871,88545.0,88535.0,0.06418754]
[1769498364171,0.03616575,88546.0,88535.0,0.0001481]
[1769498364450,0.11309908,88545.0,88535.0,0.0001481]
[1769498364568,0.03616575,88546.0,88535.0,0.0001481]
[1769498364927,0.11309884,88545.0,88535.0,0.0001481]
[1769498365080,0.03616575,88546.0,88535.0,0.0001481]
[1769498365295,0.11309952,88545.0,88535.0,0.0001481]
[1769498365496,0.03616575,88546.0,88535.0,0.0001481]
[1769498365707,0.11309946,88545.0,88535.0,0.0001481]
[1769498365940,0.02461501,88551.0,88536.0,0.06403944]
[1769498366208,0.02461501,88551.0,88535.0,0.50068275]
[1769498366209,0.03616575,88547.0,88535.0,0.50068275]
[1769498366420,0.11309946,88546.0,88535.0,0.50068275]
[1769498371625,0.53020995,88545.0,88535.0,0.0001481]
[1769498371993,0.11309946,88544.0,88535.0,0.0001481]
[1769498374410,0.11309946,88544.0,88535.0,5.715e-05]
[1769498374610,0.50539747,88543.0,88535.0,5.715e-05]
[1769498374824,0.11309946,88542.0,88535.0,5.715e-05]
[1769498375631,0.11309946,88542.0,88532.0,0.11604]
[1769498376037,0.11309946,88541.0,88532.0,0.11604]
[1769498377769,0.11310753,88540.0,88532.0,0.11604]
[1769498378062,0.11310753,88539.0,88532.0,0.11604]
[1769498378201,0.11310753,88538.0,88532.0,0.11604]
[1769498378398,0.50539747,88542.0,88532.0,0.11604]
[1769498378618,0.11310798,88541.0,88532.0,0.11604]
[1769498378845,0.11310798,88540.0,88532.0,0.11604]
[1769498379045,0.11310798,88539.0,88532.0,0.11604]
[1769498379409,0.11310798,88538.0,88532.0,0.11604]
[1769498379722,0.50539747,88542.0,88532.0,0.11604]
[1769498379892,0.11310988,88541.0,88532.0,0.11604]
[1769498380111,0.11310988,88540.0,88532.0,0.11604]
[1769498380316,0.11310988,88539.0,88532.0,0.11604]
[1769498380514,0.11310988,88538.0,88532.0,0.11604]
[1769498380717,0.50539747,88542.0,88532.0,0.11604]
[1769498380882,0.11310626,88541.0,88532.0,0.11604]
[1769498381083,0.11310626,88540.0,88532.0,0.11604]
[1769498381280,0.11310626,88539.0,88532.0,0.11604]
[1769498381483,0.11310626,88538.0,88532.0,0.11604]
[1769498381745,0.50539747,88542.0,88532.0,0.11604]
[1769498381942,0.11310241,88541.0,88532.0,0.11604]
[1769498382174,0.11310241,88540.0,88532.0,0.11604]
[1769498382395,0.11310241,88539.0,88532.0,0.11604]
[1769498382571,0.11310241,88538.0,88532.0,0.11604]
[1769498382831,0.50539747,88542.0,88532.0,0.11604]
[1769498383028,0.11309934,88541.0,88532.0,0.11604]
[1769498383168,0.11309934,88540.0,88532.0,0.11604]
[1769498383384,0.11309934,88540.0,88518.0,0.02276219]
[1769498383385,0.01,88532.0,88518.0,0.02276219]
[1769498383597,0.50539747,88531.0,88518.0,0.02276219]
[1769498383797,0.11310738,88530.0,88518.0,0.0001481]
[1769498384005,0.0723368,88529.0,88518.0,0.0001481]
[1769498384216,0.50539747,88531.0,88518.0,0.0001481]
[1769498384426,0.11310849,88530.0,88518.0,0.0001481]
[1769498384632,0.11310849,88529.0,88518.0,0.00061561]
[1769498384834,0.50539747,88531.0,88518.0,0.00061561]
[1769498385038,0.11307239,88530.0,88518.0,0.00061561]
[1769498385243,0.50539747,88531.0,88518.0,0.00061561]
[1769498385244,0.11307239,88529.0,88518.0,0.00061561]
[1769498385443,0.11305025,88528.0,88518.0,0.00061561]
[1769498385657,0.51669294,88531.0,88518.0,0.00061561]
[1769498385852,0.61844772,88530.0,88518.0,0.00061561]
[1769498386103,0.11305025,88529.0,88518.0,0.00061561]
[1769498387802,0.50539747,88530.0,88512.0,0.50053465]
[1769498388003,0.50586464,88530.0,88513.0,0.02261409]
[1769498388712,0.06572037,88529.0,88513.0,0.02261409]
[1769498389521,0.50586464,88530.0,88513.0,0.02261409]
[1769498389720,0.51716024,88530.0,88513.0,0.02261409]
[1769498389968,0.51716024,88530.0,88512.0,0.50053465]
[1769498389969,0.50539747,88528.0,88511.0,0.11608]
[1769498390184,0.11297801,88527.0,88511.0,0.11608]
[1769498390401,0.53020995,88528.0,88511.0,0.11608]
[1769498390600,0.11295568,88527.0,88511.0,0.11608]
[1769498390808,0.11295568,88526.0,88511.0,0.11608]
[1769498391011,0.60270786,88528.0,88511.0,0.11608]
[1769498391219,0.11295587,88527.0,88511.0,0.11608]
[1769498391427,0.11293679,88526.0,88511.0,0.11608]
[1769498391658,0.03103,88526.0,88511.0,0.11608]
[1769498394224,0.5101993,88526.0,88511.0,0.11608]
[1769498395613,0.4791693,88526.0,88511.0,0.11608]
[1769498397323,0.4791693,88526.0,88511.0,0.14050013]
[1769498400156,0.4791693,88526.0,88511.0,0.11608]
[1769498400357,0.4791693,88526.0,88511.0,0.14050013]
[1769498403114,0.11290496,88525.0,88511.0,0.14050013]
[1769498403332,0.07867905,88524.0,88511.0,0.02442013]
[1769498403592,0.4791693,88526.0,88510.0,0.44242128]
[1769498403778,0.49046541,88526.0,88510.0,0.44242128]
[1769498403920,0.4791693,88526.0,88510.0,0.38579497]
[1769498404117,0.4791693,88526.0,88510.0,0.32917966]
[1769498404320,0.4791693,88526.0,88510.0,0.27256435]
[1769498404575,0.55130844,88526.0,88510.0,0.21594904]
[1769498404784,0.55130844,88526.0,88510.0,0.15933374]
[1769498404949,0.55130844,88526.0,88510.0,0.10271843]
[1769498405188,0.55130844,88526.0,88510.0,0.04610312]
[1769498405392,0.55130844,88526.0,88506.0,0.01404472]
[1769498405591,0.55130844,88526.0,88500.0,0.0001481]
[1769498405592,0.03138877,88525.0,88507.0,0.44242018]
[1769498405797,0.03138877,88525.0,88507.0,0.38579898]
[1769498405995,0.03138877,88525.0,88507.0,0.32919307]
[1769498406220,0.03138877,88525.0,88507.0,0.27257584]
[1769498406595,0.03138877,88525.0,88507.0,0.21595861]
[1769498406801,0.4791693,88526.0,88507.0,0.21595861]
[1769498406802,0.06601361,88524.0,88507.0,0.1593527]
[1769498406995,0.06601361,88524.0,88507.0,0.10273547]
[1769498407224,0.06601361,88524.0,88507.0,0.04611824]
[1769498407422,0.0375143,88523.0,88499.0,0.10558101]
[1769498407602,0.0375143,88523.0,88500.0,0.41799768]
[1769498407809,0.0375143,88523.0,88502.0,0.47461581]
[1769498408038,0.0375143,88523.0,88504.0,0.47461581]
[1769498408240,0.0375143,88523.0,88505.0,0.02060761]
[1769498408444,0.0375143,88523.0,88506.0,0.47461581]
[1769498408651,0.0375143,88523.0,88505.0,0.02060761]
[1769498408817,0.01129637,88524.0,88490.0,0.0001896]
[1769498408818,0.01,88506.0,88495.0,0.02060761]
[1769498409042,0.01,88506.0,88496.0,0.47461581]
[1769498409043,0.0098394,88506.0,88496.0,0.47461581]
[1769498409407,0.0225757,88515.0,88496.0,0.47461581]
[1769498409814,0.0837875,88515.0,88496.0,0.47461581]
[1769498409985,0.0837875,88515.0,88496.0,0.49522342]
[1769498410768,0.0225757,88515.0,88496.0,0.49522342]
[1769498417491,0.11297133,88514.0,88496.0,0.49522342]
[1769498417697,0.0225757,88515.0,88496.0,0.49522342]
[1769498417878,0.11297133,88514.0,88496.0,0.49522342]
[1769498418040,0.0225757,88515.0,88496.0,0.49522342]
[1769498418237,0.11297133,88514.0,88496.0,0.49522342]
[1769498418435,0.07636678,88515.0,88496.0,0.49522342]
[1769498418679,0.11297201,88514.0,88496.0,0.49522342]
[1769498418857,0.11297201,88513.0,88496.0,0.49522342]
[1769498419063,0.11297201,88512.0,88496.0,0.49522342]
[1769498419262,0.04973683,88512.0,88496.0,0.49522342]
[1769498424541,0.11297362,88511.0,88496.0,0.49522342]
[1769498424788,0.04973683,88512.0,88496.0,0.49522342]
[1769498424992,0.11297515,88511.0,88496.0,0.49522342]
[1769498425170,0.04973683,88512.0,88496.0,0.49522342]
[1769498425346,0.16676495,88511.0,88496.0,0.49522342]
[1769498425547,0.05379108,88511.0,88496.0,0.49522342]
[1769498428452,0.11298721,88510.0,88496.0,0.49522342]
[1769498428629,0.05379108,88511.0,88496.0,0.49522342]
[1769498428834,0.11298721,88510.0,88496.0,0.49522342]
[1769498429056,0.05379108,88511.0,88496.0,0.49522342]
[1769498429057,0.04973683,88509.0,88496.0,0.49522342]
[1769498430208,0.04973683,88509.0,88496.0,0.02060761]
[1769498430781,0.04973683,88509.0,88491.0,0.51407513]
[1769498431191,0.04973683,88509.0,88493.0,0.02338578]
[1769498431416,0.05379108,88508.0,88493.0,0.53746091]
[1769498431834,0.05379108,88508.0,88493.0,0.51407513]
[1769498432035,0.05379108,88508.0,88494.0,0.02338578]